Workbook

Sheet EXAMPLE
E2: Faculty-Led International Immersion Experience BUDGET PAGE
E3: EXAMPLE
B5: Program Name: | D5: Example UWEC Immersion Program
B7: 12 | C7: Target Number of Students
B8: 3 | C8: Length of Program (number of weeks: 1-15 days = 2 weeks, 16-22 days = 3 weeks, 23 or more days = 4 weeks)
B9: BUDGET ESTIMATES
B10: Amount | C10: Quantity | D10: TOTAL
E11: TRAVEL (please list details in space provided below each line item, if necessary)
A12: PROGRAM COSTS | B12: 1200 | C12: 2 | D12: =B12*C12 -> 2400 | E12: FACULTY / STAFF: International transportation to and from FLIIE destination
E13: International Flight from MSP to ____
B14: 0 | C14: 0 | D14: =B14*C14 -> 0 | E14: STUDENTS: GROUP FLIGHT ONLY*
E15: * If students are not travelling as a group, leave this item blank, and fill in below
B16: 500 | C16: =C12 -> 2 | D16: =B16*C16 -> 1000 | E16: In-country transportation
E17: Private bus from airport, local city transportation ($20 per person)
B18: 500 | C18: 14 | D18: =B18*C18 -> 7000 | E18: Housing
E19: Hostel @ $25/night/person x 20 nights (14 peple = 12 students and 2 faculty leaders)
B20: =(10+15) *21 -> 525 | C20: 2 | D20: 1050 | E20: Faculty / Staff Meals
E21: Breakfast included in hostel, lunch @ $10 + dinner @$15 x 21 days
B22: 500 | C22: 1 | D22: 500 | E22: In-country services
E23: Lecture room rental, bilingual guide
B24: 20 | C24: 14 | D24: 280 | E24: In-country admin / miscellaneous costs
E25: Phone cards, tips
B26: 45 | C26: 14 | D26: 630 | E26: Tickets/admissions
E27: 3 museums (12 students and 2 faculty leaders)
B28: 100 | C28: 5 | D28: 500 | E28: Honoraria to individuals or organizations
E29: Five lectures from local professionals
B30: 30 | C30: 2 | D30: =B30*C30 -> 60 | E30: Supplies (please list if applicable)
E31: International tracphones for faculty
B32: 30 | C32: 2 | D32: 60 | E32: CISI Insurance (9-15 days = $18; 16-22 days = $26, 23 +days = $35 per person)
E33: International tracphones for faculty
D34: =SUM(D12:D32) -> 13480 | E34: Subtotal for travel and supplies expenses
D35: =D34/B7 -> 1123.333333 | E35: Estimated Program Fee per Student
A37: ADDITIONAL COSTS | D37: 1200 | E37: INDIVIDUAL AIRFARE (not included as part of program budget)
B38: tuition | C38: credits
D39: 300 | E39: Estimated cost for student meals (per person)
D41: 150 | E41: Estimated passport / visa costs (per person)
D43: 150 | E43: Personal Expenses
B45: 357.63 | C45: 3 | D45: =B45*C45 -> 1072.89 | E45: TUITION: only enter the number of credits earned while on the actual immersion program, itself
E46: $357.63 per credit
D47: 30 | E47: Application Fee
D49: =SUM(D39:D47) -> 1702.89 | E49: Additional Costs Per Student
C50: weeks | D50: =D35+D49 -> 2826.223333 | E50: Estimated Student Program Fee (Program costs + Additional costs per student)
A51: FLIIE CONTRIBUTIONS | B51: 500 | C51: =B8 -> 3 | D51: =B51*C51 -> 1500 | E51: FLIIE contribution per student: $500 per student per week, up to max. $2,000 / student
D52: =D50-D51 -> 1326.223333 | E52: TOTAL COST PER STUDENT
B54: --------------------------------------------------------------------------------------------------------------------------------------------------------------
C55: FLIIE FUNDING CONTRIBUTIONS:
D56: =D51*B7 -> 18000 | E56: Total Estimated FLIIE contributions to program fees
B57: stipend | C57: faculty
B58: 1500 | C58: =C12 -> 2 | D58: =B58*C58 -> 3000 | E58: Stipends to Faculty ($1,500 per faculty / staff member)
D60: =D58+D56 -> 21000 | E60: TOTAL FLIIE CONTRIBUTIONS from Blugold Commitment Differential Tuition
